bitfinex/quotes_BTCUSD_20241208
["timestamp","ask_amount","ask_price","bid_price","bid_amount"]
[1733624210677,0.001737,100020.0,100010.0,1.31196394]
[1733624210885,0.002737,100020.0,100010.0,1.31196394]
[1733624211294,0.001737,100020.0,100010.0,1.31196394]
[1733624211503,0.001737,100020.0,100010.0,1.32096394]
[1733624211631,0.001737,100020.0,100010.0,1.31796394]
[1733624212240,0.001737,100020.0,100010.0,1.24220069]
[1733624212671,0.001737,100020.0,100010.0,1.2347191]
[1733624213244,0.001737,100020.0,100010.0,1.2437191]
[1733624214072,0.001737,100020.0,100010.0,1.31948235]
[1733624216545,0.001737,100020.0,100010.0,1.88475607]
[1733624216753,0.001737,100020.0,100010.0,1.77955607]
[1733624217357,0.0017352,100030.0,100020.0,0.337972]
[1733624217587,0.0017352,100030.0,100020.0,0.83990002]
[1733624217776,0.0017352,100030.0,100020.0,1.18082195]
[1733624218426,0.0017352,100030.0,100020.0,1.18009943]
[1733624219240,0.0017352,100030.0,100020.0,1.18309943]
[1733624220478,0.0017352,100030.0,100020.0,1.18909943]
[1733624221941,0.0017352,100030.0,100020.0,1.01050154]
[1733624223978,0.1867371,100040.0,100030.0,0.187958]
[1733624224104,0.1867371,100040.0,100030.0,0.28898704]
[1733624224328,0.1867371,100040.0,100030.0,0.2985965]
[1733624224529,0.1857523,100040.0,100030.0,0.2985965]
[1733624225092,0.18632806,100040.0,100030.0,0.2985965]
[1733624225351,0.13632806,100040.0,100030.0,0.2985965]
[1733624225499,0.13632806,100040.0,100030.0,0.38789544]
[1733624225932,0.13632806,100040.0,100030.0,0.52284386]
[1733624226137,0.13632806,100040.0,100030.0,0.85232708]
[1733624226731,0.13632806,100040.0,100030.0,0.85432708]
[1733624227450,0.13632806,100040.0,100030.0,0.52484386]
[1733624228195,0.13632806,100040.0,100030.0,1.00426749]
[1733624228351,0.13632806,100040.0,100030.0,1.00427381]
[1733624228999,0.13632806,100040.0,100030.0,1.00424216]
[1733624229428,0.13632806,100040.0,100030.0,1.01438217]
[1733624230326,0.13632806,100040.0,100030.0,0.68498387]
[1733624230772,0.13632806,100040.0,100030.0,1.01437181]
[1733624232328,0.13632806,100040.0,100030.0,1.03421152]
[1733624233199,0.13632806,100040.0,100030.0,0.57087516]
[1733624233425,0.32627206,100040.0,100030.0,0.12377851]
[1733624233841,0.30127206,100040.0,100030.0,0.12377851]
[1733624234290,0.30127206,100040.0,100030.0,0.01360899]
[1733624234779,0.27627206,100040.0,100030.0,0.01360899]
[1733624235207,0.27627206,100040.0,100030.0,0.01260899]
[1733624235890,0.27627206,100040.0,100030.0,0.01060899]
[1733624236311,0.27827206,100040.0,100030.0,0.01060899]
[1733624236998,0.27627206,100040.0,100030.0,0.01060899]
[1733624238918,0.27927206,100040.0,100030.0,0.01060899]
[1733624239344,0.27627206,100040.0,100030.0,0.01060899]
[1733624239783,0.27827206,100040.0,100030.0,0.01060899]
[1733624243934,0.27827206,100040.0,100030.0,0.01147519]
[1733624251080,0.1329,100020.0,100010.0,0.00338165]
[1733624251287,0.1329,100020.0,100000.0,0.62509262]
[1733624251288,0.05,100010.0,100000.0,0.62509262]
[1733624251486,0.189986,100010.0,100000.0,0.65376808]
[1733624251693,0.189986,100010.0,100000.0,0.10990152]
[1733624252264,0.139986,100010.0,100000.0,0.10990152]
[1733624252467,0.139986,100010.0,100000.0,0.11790152]
[1733624254839,0.139986,100010.0,100000.0,0.12190152]
[1733624255773,0.139986,100010.0,100000.0,0.12276772]
[1733624258695,0.139986,100010.0,100000.0,0.13263407]
[1733624261055,0.222886,100010.0,100000.0,0.13263407]
[1733624261269,0.296686,100010.0,100000.0,0.02273255]
[1733624261704,0.296686,100010.0,100000.0,0.0228569]
[1733624262402,0.296686,100010.0,100000.0,0.0188569]
[1733624262625,0.297686,100010.0,100000.0,0.0108569]
[1733624262835,0.298686,100010.0,100000.0,0.0108569]
[1733624263268,0.297686,100010.0,100000.0,0.0108569]
[1733624263905,0.296686,100010.0,100000.0,0.0108569]
[1733624264123,0.296686,100010.0,100000.0,0.0118569]
[1733624269069,0.1817,100010.0,100000.0,0.11188641]
[1733624269265,0.05,100010.0,100000.0,0.11188641]
[1733624269786,0.05,100010.0,100000.0,0.38935014]
[1733624270009,0.05,100010.0,100000.0,0.85351674]
[1733624270212,0.2738654,100020.0,100000.0,0.85251674]
[1733624270369,0.05,100010.0,100000.0,0.75248723]
[1733624270574,0.2738654,100020.0,100010.0,0.139986]
[1733624270970,0.272872,100020.0,100010.0,0.14928692]
[1733624271384,0.05,100020.0,100010.0,0.14928692]
[1733624271858,0.05,100020.0,100010.0,0.15128692]
[1733624272650,0.05,100020.0,100010.0,0.15875962]
[1733624272846,0.05,100020.0,100010.0,0.25878926]
[1733624273175,0.05,100020.0,100010.0,0.25978922]
[1733624273384,0.05,100020.0,100010.0,0.39776822]
[1733624273580,0.05,100020.0,100010.0,0.645323]
[1733624273808,0.05,100020.0,100010.0,0.97546474]
[1733624274010,0.05,100020.0,100010.0,0.644315]
[1733624274154,0.05,100020.0,100010.0,0.507336]
[1733624274553,0.05,100020.0,100010.0,0.83648898]
[1733624274760,0.05,100020.0,100010.0,0.83749698]
[1733624275235,0.05,100020.0,100010.0,0.39340658]
[1733624275454,0.05,100020.0,100010.0,0.8579066]
[1733624276106,0.05,100020.0,100010.0,0.8569066]
[1733624276308,0.05,100020.0,100010.0,0.8549066]
[1733624276767,0.05,100020.0,100010.0,1.03675043]
[1733624276938,0.05,100020.0,100010.0,1.03275043]
[1733624277278,0.05,100020.0,100010.0,1.03875043]
[1733624277670,0.05,100020.0,100010.0,0.31025233]
[1733624277871,0.05,100020.0,100010.0,0.31325233]
[1733624278084,0.05,100020.0,100010.0,0.31425233]
[1733624278311,0.0517328,100020.0,100010.0,0.31125233]
[1733624278516,0.0517328,100020.0,100010.0,0.93813092]
[1733624278728,0.0517328,100020.0,100010.0,1.17915735]
[1733624278924,0.0517328,100020.0,100010.0,1.04482622]
[1733624279372,0.0517328,100020.0,100010.0,1.04382622]
[1733624279550,0.0517328,100020.0,100010.0,0.86971805]
[1733624279698,0.0517328,100020.0,100010.0,1.13538031]
[1733624279908,0.0517328,100020.0,100010.0,1.13190752]
[1733624280120,0.0517328,100020.0,100010.0,0.8707123]
[1733624280523,0.0017328,100020.0,100010.0,0.8707123]
[1733624280713,0.0017328,100020.0,100010.0,1.16437456]
[1733624281198,0.0017328,100020.0,100010.0,0.8957123]
[1733624281467,0.0017328,100020.0,100010.0,1.24537456]
[1733624282298,0.0017328,100020.0,100010.0,1.16402231]
[1733624282501,0.0017328,100020.0,100010.0,1.17148871]
[1733624282767,0.05,100030.0,100020.0,0.187972]
[1733624282946,0.05,100030.0,100020.0,0.83316526]
[1733624283162,0.05,100030.0,100020.0,1.16374577]
[1733624283380,0.05,100030.0,100020.0,1.17303883]
[1733624284759,0.05,100030.0,100020.0,1.26262143]
[1733624284964,0.05,100030.0,100020.0,1.17855287]
[1733624285315,0.05,100030.0,100020.0,0.99058087]
[1733624285494,0.270058,100030.0,100020.0,0.81134842]
[1733624286854,0.270058,100030.0,100020.0,0.67137642]
[1733624288448,0.270058,100030.0,100020.0,0.81134842]
[1733624289695,0.270058,100030.0,100020.0,0.67137642]
[1733624290803,0.2709243,100030.0,100020.0,0.81134842]
[1733624291031,0.2709243,100030.0,100020.0,0.81131266]
[1733624291458,0.2709243,100030.0,100020.0,0.9904486]
[1733624291658,0.0008663,100030.0,100020.0,1.0134486]
[1733624291873,0.0008663,100030.0,100020.0,1.23736852]
[1733624292074,0.0008663,100030.0,100020.0,1.14780055]
[1733624293960,0.0508663,100030.0,100020.0,1.14780055]
[1733624294389,0.0008663,100030.0,100020.0,1.14780055]
[1733624294596,0.0008663,100030.0,100020.0,1.23730037]
[1733624295005,0.0008663,100030.0,100020.0,1.26230037]
[1733624295211,0.0008663,100030.0,100020.0,1.26227967]
[1733624295620,0.0008663,100030.0,100020.0,1.44680055]
[1733624295819,0.0008663,100030.0,100020.0,1.55200055]
[1733624296032,0.0008663,100030.0,100020.0,1.44680055]
[1733624299532,0.0008663,100030.0,100020.0,1.3880805]
[1733624299737,0.0008663,100030.0,100020.0,1.3124486]
[1733624300051,0.06131526,100040.0,100030.0,0.337958]
[1733624300250,0.06131526,100040.0,100030.0,0.66894472]
[1733624300428,0.06032806,100040.0,100030.0,1.0088357]
[1733624300637,0.06032806,100040.0,100030.0,1.00833083]
[1733624300849,0.06032806,100040.0,100030.0,1.18716507]
[1733624301247,0.06032806,100040.0,100030.0,1.00833083]
[1733624301248,0.06232806,100040.0,100030.0,1.00833083]
[1733624301656,0.06032806,100040.0,100030.0,1.00833083]
[1733624303790,0.06032806,100040.0,100030.0,1.00933156]
[1733624303998,0.06032806,100040.0,100030.0,1.00833156]
[1733624304225,0.06032806,100040.0,100030.0,1.01033156]
[1733624304509,0.06032806,100040.0,100030.0,1.19012412]
[1733624304876,0.06032806,100040.0,100030.0,1.21019319]
[1733624307337,0.06032806,100040.0,100030.0,1.21019251]
[1733624308838,0.06032806,100040.0,100030.0,1.43373531]
[1733624309250,0.06032806,100040.0,100030.0,1.21019251]
[1733624309649,0.06032806,100040.0,100030.0,1.43373531]
[1733624310311,0.06032806,100040.0,100030.0,1.43388691]
[1733624311371,0.06032806,100040.0,100030.0,1.21031841]
[1733624311576,0.06032806,100040.0,100030.0,1.43388691]
[1733624312677,0.06032806,100040.0,100030.0,1.44409747]
[1733624313567,0.06032806,100040.0,100030.0,1.35467007]
[1733624314203,0.13572806,100040.0,100030.0,1.35467007]
[1733624315139,0.13572806,100040.0,100030.0,1.35575724]
[1733624315546,0.13572806,100040.0,100030.0,1.35749144]
[1733624317826,0.13572806,100040.0,100030.0,1.35749584]
[1733624318571,0.13572806,100040.0,100030.0,1.22347376]
[1733624319108,0.13572806,100040.0,100030.0,1.03551576]
[1733624319306,0.13572806,100040.0,100030.0,1.16989001]
[1733624319307,0.18312806,100040.0,100030.0,1.16989001]
[1733624319511,0.32307206,100040.0,100030.0,1.16989001]
[1733624319892,0.32307206,100040.0,100030.0,1.25947987]
[1733624320578,0.32307206,100040.0,100030.0,1.16989001]
[1733624320845,0.32307206,100040.0,100030.0,1.25948655]
[1733624321478,0.01032806,100040.0,100030.0,1.5279499]
[1733624321695,0.01032806,100040.0,100030.0,1.39355377]
[1733624321874,0.06032806,100040.0,100030.0,1.16961714]
[1733624322080,0.01032806,100040.0,100030.0,1.16961714]
[1733624327526,0.01032806,100040.0,100030.0,1.19944036]
[1733624327726,0.01032806,100040.0,100030.0,1.16961714]
[1733624327902,0.01032806,100040.0,100030.0,1.19944063]
[1733624328595,0.01032806,100040.0,100030.0,1.19196443]
[1733624328722,0.01032806,100040.0,100030.0,1.19944058]
[1733624331294,0.0508681,100050.0,100040.0,0.023]
[1733624331621,0.05104076,100050.0,100040.0,0.50395853]
[1733624331967,0.05104076,100050.0,100040.0,0.83461496]
[1733624332193,0.05104076,100050.0,100040.0,1.1033629]
[1733624332424,0.05104076,100050.0,100040.0,0.83461496]
[1733624332758,0.05204076,100050.0,100040.0,0.83461496]
[1733624332968,0.05204076,100050.0,100040.0,0.82713881]
[1733624333142,0.05204076,100050.0,100040.0,0.84208563]
[1733624333509,0.05204076,100050.0,100040.0,1.11083357]
[1733624334617,0.00204076,100050.0,100040.0,1.13750247]
[1733624334817,0.00204076,100050.0,100040.0,1.14157057]
[1733624335022,0.00204076,100050.0,100040.0,1.17138343]
[1733624335221,0.00204076,100050.0,100040.0,1.21720247]
[1733624335430,0.00204076,100050.0,100040.0,1.3750427]
[1733624335626,0.00204076,100050.0,100040.0,1.29193739]
[1733624335919,0.00204076,100050.0,100040.0,1.39713739]
[1733624335920,0.00104076,100050.0,100040.0,1.39713739]
[1733624336157,0.00204076,100050.0,100040.0,1.39713739]
[1733624336567,0.00104076,100050.0,100040.0,1.47276929]
[1733624336982,0.00104076,100050.0,100040.0,1.47376929]
[1733624337286,0.00104076,100050.0,100040.0,1.47576929]
[1733624341384,0.00104076,100050.0,100040.0,1.29493739]
[1733624341583,0.00104076,100050.0,100040.0,1.21523739]
[1733624341983,0.00104076,100050.0,100040.0,1.18543425]
[1733624343078,0.00104076,100050.0,100040.0,1.45397185]
[1733624343284,0.00104076,100050.0,100040.0,1.18543425]
[1733624343730,0.00104076,100050.0,100040.0,1.45399982]
[1733624345457,0.00104076,100050.0,100040.0,1.0572121]
[1733624345682,0.08104076,100050.0,100040.0,1.0572121]
[1733624346335,0.2563441,100060.0,100050.0,0.28993]
[1733624346539,0.25640161,100060.0,100050.0,0.93456979]
[1733624346745,0.25540791,100060.0,100050.0,1.27474123]
[1733624347144,0.25540791,100060.0,100050.0,1.27454702]
[1733624347355,0.11549191,100060.0,100050.0,1.27454702]
[1733624347594,0.11649191,100060.0,100050.0,1.27454702]
[1733624347856,0.11749191,100060.0,100050.0,1.27454702]
[1733624348603,0.25740791,100060.0,100050.0,1.13461702]
[1733624348807,0.25740791,100060.0,100050.0,0.85033052]
[1733624349216,0.33740791,100060.0,100050.0,0.85033052]
[1733624349483,0.33740791,100060.0,100050.0,0.65126493]
[1733624350313,0.33740791,100060.0,100050.0,0.83031052]
[1733624350846,0.33740791,100060.0,100050.0,0.65126493]
[1733624351316,0.33740791,100060.0,100050.0,0.49984551]
[1733624351516,0.33740791,100060.0,100050.0,0.83030462]
[1733624351741,0.33740791,100060.0,100050.0,0.84067846]
[1733624352428,0.33740791,100060.0,100050.0,1.00064762]
[1733624353415,0.33740791,100060.0,100050.0,0.84067846]
[1733624354831,0.33740791,100060.0,100050.0,0.83321364]
[1733624355041,0.33740791,100060.0,100050.0,0.98060872]
[1733624356247,0.33740791,100060.0,100050.0,1.20441571]
[1733624356445,0.33740791,100060.0,100050.0,0.98060872]
[1733624356849,0.33740791,100060.0,100050.0,1.20441571]
[1733624357256,0.33740791,100060.0,100050.0,0.98060872]
[1733624357683,0.33740791,100060.0,100050.0,1.20441571]
[1733624358788,0.19749191,100060.0,100050.0,1.19695063]
[1733624358969,0.19749191,100060.0,100050.0,1.20441892]
[1733624359759,0.19749191,100060.0,100050.0,0.98061199]
[1733624360210,0.19749191,100060.0,100050.0,1.20441898]
[1733624360415,0.19749191,100060.0,100050.0,0.98061199]
[1733624360708,0.33740791,100060.0,100050.0,0.97314364]
[1733624360912,0.33740791,100060.0,100050.0,1.20441928]
[1733624361143,0.33740791,100060.0,100050.0,1.06448928]
[1733624361359,0.33740791,100060.0,100050.0,0.84068229]
[1733624361731,0.33740791,100060.0,100050.0,0.8409821]
[1733624362142,0.33740791,100060.0,100050.0,0.83351345]
[1733624362348,0.33740791,100060.0,100050.0,0.84098304]
[1733624362703,0.33740791,100060.0,100050.0,0.66186481]
[1733624364112,0.33740791,100060.0,100050.0,0.84098304]
[1733624365699,0.33740791,100060.0,100050.0,0.83351345]
[1733624365911,0.33740791,100060.0,100050.0,0.84098133]
[1733624367148,0.33740791,100060.0,100050.0,1.06487912]
[1733624367564,0.31240791,100060.0,100050.0,0.98486961]
[1733624367770,0.31240791,100060.0,100050.0,0.76097182]
[1733624367950,0.31240791,100060.0,100050.0,0.58185359]
[1733624371239,0.31240791,100060.0,100050.0,0.25125451]
[1733624371630,0.31240791,100060.0,100050.0,0.58201098]
[1733624372783,0.31240791,100060.0,100050.0,0.58200912]
[1733624374098,0.31240791,100060.0,100050.0,0.58374292]
[1733624376276,0.31240791,100060.0,100050.0,0.58374553]
[1733624376485,0.31240791,100060.0,100050.0,0.5762769]
[1733624376735,0.31240791,100060.0,100050.0,0.58374541]
[1733624377164,0.31240791,100060.0,100050.0,0.25298894]
[1733624378436,0.31240791,100060.0,100050.0,0.11865027]
[1733624378642,0.31240791,100060.0,100050.0,0.11865332]
[1733624379919,0.31240791,100060.0,100050.0,0.11865446]
[1733624383381,0.31240791,100060.0,100050.0,0.11865325]
[1733624384210,0.31240791,100060.0,100050.0,0.25299649]
[1733624386222,0.31240791,100060.0,100050.0,0.02909109]
[1733624386435,0.31240791,100060.0,100050.0,0.25287667]
[1733624387109,0.31240791,100060.0,100050.0,0.58325101]
[1733624390666,0.31240791,100060.0,100050.0,0.57578257]
[1733624390872,0.31240791,100060.0,100050.0,0.58324455]
[1733624392111,0.31240791,100060.0,100050.0,0.76227302]
[1733624400772,0.31240791,100060.0,100050.0,0.76206281]
[1733624401185,0.31240791,100060.0,100050.0,0.76206386]
[1733624403324,0.31240791,100060.0,100050.0,0.65545521]
[1733624403955,0.23240791,100060.0,100050.0,0.98576727]
[1733624404158,0.23240791,100060.0,100050.0,1.16139678]
[1733624404159,0.01879191,100060.0,100050.0,1.16139678]
[1733624404395,0.06879191,100060.0,100050.0,1.07738523]
[1733624404615,0.06879191,100060.0,100050.0,0.89848065]
[1733624404840,0.06879191,100060.0,100050.0,0.9432068]
[1733624405693,0.01879191,100060.0,100050.0,0.9432068]
[1733624405869,0.06879191,100060.0,100050.0,1.16672847]
[1733624406095,0.01879191,100060.0,100050.0,1.16672847]
[1733624406489,0.06879191,100060.0,100050.0,1.16672847]
[1733624406935,0.01879191,100060.0,100050.0,1.16672847]
[1733624407277,0.06879191,100060.0,100050.0,1.16672847]
[1733624408785,0.01879191,100060.0,100050.0,1.16672847]
[1733624408987,0.06879191,100060.0,100050.0,1.16672847]
[1733624409550,0.01879191,100060.0,100050.0,1.16672847]
[1733624411695,0.01879191,100060.0,100050.0,0.8983716]
[1733624412132,0.01879191,100060.0,100050.0,1.16672847]
[1733624412360,0.18370791,100060.0,100050.0,0.7584416]
[1733624412575,0.18370791,100060.0,100050.0,0.75122575]
[1733624412576,0.26595724,100060.0,100050.0,0.75122575]
[1733624412779,0.26470791,100060.0,100050.0,0.75122575]
[1733624413879,0.26470791,100060.0,100050.0,0.55507419]
[1733624414085,0.26470791,100060.0,100050.0,0.64447572]
[1733624414345,0.26470791,100060.0,100050.0,0.42099141]
[1733624414905,0.26470791,100060.0,100050.0,0.75097997]
[1733624417448,0.26470791,100060.0,100050.0,0.74351694]
[1733624417648,0.26470791,100060.0,100050.0,0.75097079]
[1733624420690,0.28650791,100060.0,100050.0,0.75097221]
[1733624420913,0.28650791,100060.0,100050.0,0.57218476]
[1733624421133,0.28650791,100060.0,100050.0,0.10810561]
[1733624421356,0.28650791,100060.0,100050.0,0.01870408]
[1733624421770,0.28650791,100060.0,100050.0,0.10810561]
[1733624423453,0.28650791,100060.0,100050.0,0.10819009]
[1733624423896,0.28650791,100060.0,100050.0,0.10819057]
[1733624424324,0.20550791,100060.0,100050.0,0.24241958]
[1733624425581,0.23050791,100060.0,100050.0,0.57268624]
[1733624425760,0.18370791,100060.0,100050.0,0.57268624]
[1733624425998,0.18495725,100060.0,100050.0,0.4213916]
[1733624426420,0.18495725,100060.0,100050.0,0.75165826]
[1733624426670,0.01879191,100060.0,100050.0,1.07401777]
[1733624427384,0.01879191,100060.0,100050.0,1.07401654]
[1733624427816,0.01879191,100060.0,100050.0,1.20824556]
[1733624428025,0.01879191,100060.0,100050.0,1.07401655]
[1733624429624,0.01879191,100060.0,100050.0,0.99161655]
[1733624430087,0.01879191,100060.0,100050.0,1.07131655]
[1733624430500,0.01879191,100060.0,100050.0,1.07131539]
[1733624431906,0.01879191,100060.0,100050.0,1.07402233]
[1733624433105,0.01879191,100060.0,100050.0,1.20824158]
[1733624433263,0.01879191,100060.0,100050.0,1.20824138]
[1733624433702,0.01879191,100060.0,100050.0,1.2977275]
[1733624433915,0.06879191,100060.0,100050.0,1.2977275]
[1733624434413,0.20870791,100060.0,100050.0,1.2180275]
[1733624434627,0.23370791,100060.0,100050.0,1.0780975]
[1733624435838,0.23370791,100060.0,100050.0,0.98861138]
[1733624437639,0.23370791,100060.0,100050.0,0.12143862]
[1733624437889,0.23370791,100060.0,100050.0,0.65840639]
[1733624438032,0.23370791,100060.0,100050.0,0.98876743]
[1733624438434,0.23370791,100060.0,100050.0,1.07825922]
[1733624438654,0.23370791,100060.0,100050.0,0.98876743]
[1733624439002,0.23370791,100060.0,100050.0,1.07823363]
[1733624439697,0.23370791,100060.0,100050.0,0.98874166]
[1733624440579,0.23370791,100060.0,100050.0,1.07823482]
[1733624440995,0.23370791,100060.0,100050.0,0.98874166]
[1733624441788,0.23370791,100060.0,100050.0,1.07823643]
[1733624443424,0.18370791,100060.0,100050.0,1.07823643]
[1733624443671,0.18495723,100060.0,100050.0,1.07823643]
[1733624444532,0.18495723,100060.0,100050.0,1.07824246]
[1733624449211,0.18495723,100060.0,100050.0,1.21817246]
[1733624450313,0.18495723,100060.0,100050.0,1.07824246]
[1733624451580,0.04504123,100060.0,100050.0,1.21817246]
[1733624452473,0.04504123,100060.0,100050.0,1.12867769]
[1733624453346,0.04504123,100060.0,100050.0,1.21072352]
[1733624453574,0.04504123,100060.0,100050.0,1.12868005]
[1733624454259,0.04504123,100060.0,100050.0,1.2181861]
[1733624455144,0.04504123,100060.0,100050.0,1.12868005]
[1733624455370,0.04504123,100060.0,100050.0,0.9944421]
[1733624457085,0.04504123,100060.0,100050.0,0.26137701]
[1733624457305,0.04504123,100060.0,100050.0,0.99444559]
[1733624457578,0.06879191,100060.0,100050.0,1.07714559]
[1733624457798,0.06879191,100060.0,100050.0,0.942907]
[1733624458481,0.06879191,100060.0,100050.0,0.94290636]
[1733624458921,0.01879191,100060.0,100050.0,1.14090636]
[1733624459141,0.01879191,100060.0,100050.0,1.34720807]
[1733624459344,0.05,100070.0,100060.0,0.245616]
[1733624459553,0.05,100070.0,100060.0,0.95172737]
[1733624459755,0.05,100070.0,100060.0,0.96355079]
[1733624460739,0.053,100070.0,100060.0,0.96355079]
[1733624460941,0.053,100070.0,100060.0,0.95608968]
[1733624461174,0.053,100070.0,100060.0,0.96354309]
[1733624461581,0.053,100070.0,100060.0,0.96354302]
[1733624461783,0.05,100070.0,100060.0,0.96354302]
[1733624462017,0.051,100070.0,100060.0,0.96354302]
[1733624462312,0.051,100070.0,100060.0,1.18697781]
[1733624464487,0.051,100070.0,100060.0,0.91870986]
[1733624465000,0.051,100070.0,100060.0,0.91816864]
[1733624465468,0.051,100070.0,100060.0,0.92831113]
[1733624466232,0.051,100070.0,100060.0,1.10788077]
[1733624466820,0.0527342,100070.0,100060.0,1.10788077]
[1733624469076,0.0517342,100070.0,100060.0,1.10788077]
[1733624469848,0.0517342,100070.0,100060.0,1.11088077]
[1733624470472,0.0527342,100070.0,100060.0,1.11088077]
[1733624471090,0.0517342,100070.0,100060.0,1.11088077]
[1733624471290,0.0517342,100070.0,100060.0,1.1118675]
[1733624473602,0.0517342,100070.0,100060.0,1.24591194]
[1733624475432,0.0517342,100070.0,100060.0,1.1118675]
[1733624477832,0.0517342,100070.0,100060.0,1.10442743]
[1733624478028,0.0517342,100070.0,100060.0,1.11186863]
[1733624479202,0.0517342,100070.0,100060.0,1.24592232]
[1733624479423,0.0517342,100070.0,100060.0,1.24603374]
[1733624480257,0.12725957,100070.0,100060.0,1.24603374]
[1733624484234,0.12725957,100070.0,100060.0,1.245835]
[1733624484432,0.15350873,100070.0,100060.0,1.140135]
[1733624484666,0.15350873,100070.0,100060.0,1.22949411]
[1733624484876,0.15225957,100070.0,100060.0,1.22949411]
[1733624485242,0.15225957,100070.0,100060.0,1.140135]
[1733624486549,0.15225957,100070.0,100060.0,1.120115]
[1733624487557,0.0767342,100070.0,100060.0,1.120115]
[1733624488360,0.0767342,100070.0,100060.0,1.32744062]
[1733624488361,0.0517342,100070.0,100060.0,1.32744062]
[1733624491304,0.0517342,100070.0,100060.0,1.3274699]
[1733624491715,0.0517342,100070.0,100060.0,1.10406868]
[1733624492320,0.0517342,100070.0,100060.0,1.13385072]
[1733624493610,0.0277272,100080.0,100070.0,0.0799]
[1733624493793,0.0277272,100080.0,100070.0,0.81292169]
[1733624493995,0.0277272,100080.0,100070.0,1.29450773]
[1733624493996,0.0267342,100080.0,100070.0,1.29450773]
[1733624494303,0.0267342,100080.0,100070.0,1.2050893]
[1733624495221,0.0267342,100080.0,100070.0,1.20509768]
[1733624495568,0.0277342,100080.0,100070.0,1.20509768]
[1733624495777,0.0027342,100080.0,100070.0,1.24410505]
[1733624496013,0.0027342,100080.0,100070.0,1.33347049]
[1733624496324,0.0027342,100080.0,100070.0,1.1398197]
[1733624498175,0.0027342,100080.0,100070.0,1.16015677]
[1733624498390,0.0027342,100080.0,100070.0,1.15990615]
[1733624498610,0.0027342,100080.0,100070.0,1.13014587]
[1733624498813,0.0027342,100080.0,100070.0,0.53242055]
[1733624499010,0.0027342,100080.0,100070.0,1.1300884]
[1733624500681,0.0027342,100080.0,100070.0,1.35344019]
[1733624500885,0.0027342,100080.0,100070.0,1.08548256]
[1733624502145,0.0027342,100080.0,100070.0,1.35344019]
[1733624502594,0.0027342,100080.0,100070.0,1.26415955]
[1733624502969,0.0277342,100080.0,100070.0,1.18425955]
[1733624503262,0.0277342,100080.0,100070.0,1.1843358]
[1733624503465,0.0277342,100080.0,100070.0,1.18432666]
[1733624504198,0.0277342,100080.0,100070.0,1.00564788]
[1733624505473,0.0277342,100080.0,100070.0,1.27366605]
[1733624507427,0.0277342,100080.0,100070.0,1.00564788]
[1733624508118,0.0277342,100080.0,100070.0,1.1843247]
[1733624510809,0.0277342,100080.0,100070.0,1.00564788]
[1733624511030,0.0277342,100080.0,100070.0,1.27366605]
[1733624512603,0.0277342,100080.0,100070.0,1.2745351]
[1733624513026,0.0277342,100080.0,100070.0,1.08119803]
[1733624513027,0.1045086,100080.0,100070.0,1.08119803]
[1733624513254,0.1045086,100080.0,100070.0,0.99182377]
[1733624514143,0.2443966,100080.0,100070.0,0.99182377]
[1733624514376,0.31934757,100080.0,100070.0,1.1258034]
[1733624514585,0.44057294,100080.0,100070.0,0.99178291]
[1733624515725,0.41557294,100080.0,100070.0,0.7518514]
[1733624515934,0.41557294,100080.0,100070.0,0.57320749]
[1733624516134,0.41557294,100080.0,100070.0,0.10943987]
[1733624516561,0.41557294,100080.0,100070.0,0.02011188]
[1733624517827,0.54109831,100080.0,100070.0,0.02011188]
[1733624518030,0.54109831,100080.0,100070.0,0.01266939]
[1733624518722,0.261802,100070.0,100060.0,0.00095898]
[1733624519138,0.261802,100070.0,100050.0,1.04702935]
[1733624519139,0.025,100060.0,100050.0,0.90710035]
[1733624519342,0.025,100060.0,100050.0,1.34688067]
[1733624519553,0.025,100060.0,100050.0,1.33962852]
[1733624519756,0.1219,100070.0,100060.0,0.139916]
[1733624519757,0.22242537,100070.0,100060.0,0.139916]
[1733624519963,0.22242537,100070.0,100060.0,0.36327568]
[1733624520164,0.22242537,100070.0,100060.0,0.36627568]
[1733624520335,0.14622537,100070.0,100060.0,0.69702825]
[1733624520544,0.10052537,100070.0,100060.0,0.86638986]
[1733624520747,0.19915957,100080.0,100060.0,0.86638986]
[1733624520748,0.22415957,100080.0,100060.0,1.24672697]
[1733624520954,0.10052537,100070.0,100060.0,1.11269875]
[1733624521156,0.10177454,100070.0,100060.0,1.11249222]
[1733624522112,0.10177454,100070.0,100060.0,1.24947272]
[1733624523108,0.025,100070.0,100060.0,1.27247272]
[1733624523483,0.14795957,100080.0,100070.0,0.139902]
[1733624523710,0.14920865,100080.0,100070.0,0.46327076]
[1733624523917,0.0017342,100080.0,100070.0,0.66490448]
[1733624524128,0.0017342,100080.0,100070.0,1.12029664]
[1733624524337,0.0017342,100080.0,100070.0,1.22666222]
[1733624524533,0.0017342,100080.0,100070.0,1.09268693]
[1733624524781,0.0027342,100080.0,100070.0,1.09268693]
[1733624525629,0.1419604,100090.0,100080.0,0.162888]
[1733624525883,0.1419604,100090.0,100080.0,0.66477496]
[1733624526073,0.140968,100090.0,100080.0,0.99447979]
[1733624526295,0.140968,100090.0,100080.0,0.81587648]
[1733624526527,0.140968,100090.0,100080.0,1.00530531]
[1733624526978,0.143968,100090.0,100080.0,1.00530531]
[1733624527420,0.140968,100090.0,100080.0,1.00530531]
[1733624527627,0.140968,100090.0,100080.0,1.00630531]
[1733624527849,0.140968,100090.0,100080.0,1.00930531]
[1733624528062,0.21649337,100090.0,100080.0,1.00930531]
[1733624528273,0.21649337,100090.0,100080.0,1.14322434]
[1733624528739,0.21649337,100090.0,100080.0,1.23249192]
[1733624528945,0.21649337,100090.0,100080.0,1.23249237]
[1733624529158,0.21649337,100090.0,100080.0,1.24274663]
[1733624530730,0.21649337,100090.0,100080.0,1.25018347]
[1733624530951,0.21649337,100090.0,100080.0,1.16091544]
[1733624531645,0.21649337,100090.0,100080.0,1.1609144]
[1733624535097,0.21649337,100090.0,100080.0,1.1604067]
[1733624536475,0.21649337,100090.0,100080.0,1.24963392]
[1733624536882,0.21822757,100090.0,100080.0,1.24963392]
[1733624537614,0.1427022,100090.0,100080.0,1.24963151]
[1733624539947,0.1427022,100090.0,100080.0,1.24889061]
[1733624542199,0.1427022,100090.0,100080.0,1.2488831]
[1733624544729,0.21822757,100090.0,100080.0,1.24906163]
[1733624545514,0.21822757,100090.0,100080.0,1.24906155]
[1733624545728,0.1427022,100090.0,100080.0,1.24906155]
[1733624549001,0.1427022,100090.0,100080.0,1.24906939]
[1733624549225,0.1427022,100090.0,100080.0,1.24993629]
[1733624549623,0.1427022,100090.0,100080.0,1.16074367]
[1733624552402,0.1427022,100090.0,100080.0,1.16075316]
[1733624555916,0.1427022,100090.0,100080.0,1.16075953]
[1733624556129,0.1427022,100090.0,100080.0,1.02695572]
[1733624556830,0.21822757,100090.0,100080.0,1.02695572]
[1733624557052,0.21822757,100090.0,100080.0,1.00395572]